bitfinex/quotes_SOLUSD_20250805
["timestamp","ask_amount","ask_price","bid_price","bid_amount"]
[1754352001200,0.03,169.74,169.73,0.06]
[1754352001499,0.03,169.76,169.73,0.5]
[1754352001705,0.03,169.78,169.74,0.14216157]
[1754352002014,0.03,169.78,169.74,0.35]
[1754352002015,0.7,169.78,169.74,0.35]
[1754352002167,0.03,169.78,169.74,0.35]
[1754352002992,0.03,169.78,169.75,0.35]
[1754352003206,0.03,169.78,169.73,0.06]
[1754352003364,0.03,169.78,169.74,0.35]
[1754352003568,0.03,169.78,169.75,0.35]
[1754352003804,0.03,169.78,169.76,0.35]
[1754352003973,0.03,169.78,169.77,0.35]
[1754352004198,0.03,169.78,169.75,0.35]
[1754352004398,0.67,169.77,169.73,0.06]
[1754352004728,0.67,169.77,169.73,0.41]
[1754352005023,0.03,169.78,169.74,0.35]
[1754352005332,0.7,169.78,169.74,0.35]
[1754352006632,0.03,169.78,169.73,0.06]
[1754352006788,0.7,169.78,169.73,0.41]
[1754352006994,0.7,169.78,169.74,0.35]
[1754352007325,6.59021637,169.78,169.73,0.06]
[1754352007532,0.14216157,169.76,169.73,0.06]
[1754352008032,15.24837714,169.74,169.73,0.06]
[1754352008400,0.81216157,169.74,169.73,0.06]
[1754352008828,6.70352483,169.74,169.73,0.06]
[1754352010337,10.6627164,169.74,169.73,0.06]
[1754352011934,13.0235034,169.74,169.73,0.06]
[1754352012234,13.0235034,169.74,169.73,1e-08]
[1754352016135,69.44971897,169.74,169.73,1e-08]
[1754352016315,28.12971897,169.74,169.73,1e-08]
[1754352016506,69.44971897,169.74,169.73,1e-08]
[1754352020836,67.08893197,169.74,169.73,1e-08]
[1754352021147,69.44971897,169.74,169.73,1e-08]
[1754352021330,69.44748204,169.74,169.73,1e-08]
[1754352023761,67.08669504,169.74,169.73,1e-08]
[1754352024549,15.10621557,169.73,169.71,1e-08]
[1754352024718,0.14216157,169.72,169.71,1e-08]
[1754352024923,15.77621557,169.73,169.71,1e-08]
[1754352025255,0.81216157,169.72,169.71,1e-08]
[1754352025549,6.70421907,169.72,169.71,1e-08]
[1754352025958,6.03421907,169.72,169.71,1e-08]
[1754352026254,62.31827307,169.72,169.71,1e-08]
[1754352028153,20.99827307,169.72,169.71,1e-08]
[1754352028326,62.31827307,169.72,169.71,1e-08]
[1754352028641,63.14043464,169.72,169.71,1e-08]
[1754352028939,67.09574395,169.72,169.71,1e-08]
[1754352030126,84.80478495,169.72,169.71,1e-08]
[1754352032142,94.80478495,169.72,169.71,1e-08]
[1754352038050,84.80478495,169.72,169.71,1e-08]
[1754352038242,94.80478495,169.72,169.71,1e-08]
[1754352042061,94.83478495,169.72,169.71,1e-08]
[1754352045344,0.14216157,169.67,169.63,0.35]
[1754352045547,0.14216157,169.64,169.61,0.06]
[1754352045848,41.34,169.63,169.61,0.06]
[1754352046035,56.44621557,169.63,169.62,0.35]
[1754352047066,62.3413992,169.63,169.62,0.35]
[1754352052063,41.34,169.63,169.62,0.35]
[1754352052854,47.23518363,169.63,169.62,0.35]
[1754352054064,47.23518363,169.63,169.61,0.06]
[1754352054259,47.23518363,169.63,169.62,0.35]
[1754352055367,47.23518363,169.63,169.61,0.06]
[1754352055368,47.23518363,169.63,169.61,0.41]
[1754352057056,5.89518363,169.63,169.61,0.06]
[1754352057250,41.34,169.62,169.61,0.06]
[1754352058474,47.23553118,169.62,169.61,0.06]
[1754352059654,47.23553118,169.62,169.61,0.41]
[1754352060163,41.34,169.62,169.61,0.41]
[1754352060488,47.23553118,169.62,169.61,0.06]
[1754352071363,5.89553118,169.62,169.61,0.06]
[1754352071564,47.23553118,169.62,169.61,0.06]
[1754352073667,47.89553118,169.62,169.61,0.06]
[1754352073991,41.34,169.62,169.61,0.06]
[1754352075295,47.23553118,169.62,169.61,0.06]
[1754352075680,47.89553118,169.62,169.61,0.06]
[1754352076390,93.11216925,169.62,169.61,1e-08]
[1754352076980,41.10621557,169.6,169.59,0.06]
[1754352077182,90.80393632,169.6,169.59,0.06]
[1754352077394,91.46393632,169.6,169.59,0.06]
[1754352077690,97.36016273,169.6,169.59,0.06]
[1754352078009,92.95070291,169.6,169.59,0.06]
[1754352081101,92.94441035,169.6,169.59,0.06]
[1754352081302,88.98244198,169.6,169.59,0.06]
[1754352082174,88.98244198,169.6,169.59,0.41]
[1754352082175,3.96145319,169.6,169.59,0.41]
[1754352082380,15.10621557,169.64,169.59,0.41]
[1754352082591,71.96107252,169.63,169.59,0.06]
[1754352082788,68.0,169.63,169.59,0.06]
[1754352083089,0.66,169.62,169.59,0.06]
[1754352083294,41.34,169.61,169.59,0.06]
[1754352084080,41.34,169.61,169.59,0.41]
[1754352084500,41.34,169.61,169.59,0.06]
[1754352084678,42.0,169.61,169.59,0.06]
[1754352085287,41.34,169.61,169.59,0.06]
[1754352092208,42.01,169.61,169.59,0.06]
[1754352092723,0.03,169.62,169.59,0.06]
[1754352092908,41.32,169.61,169.6,0.35]
[1754352093289,0.03,169.62,169.6,0.35]
[1754352093688,41.35,169.62,169.61,0.35]
[1754352094209,41.35,169.62,169.59,0.06]
[1754352094412,41.35,169.62,169.6,0.35]
[1754352094709,41.35,169.62,169.6,6.24620775]
[1754352094912,41.35,169.62,169.6,5.89620775]
[1754352095093,0.67,169.61,169.59,0.06]
[1754352095293,41.32,169.6,169.59,5.95657409]
[1754352097610,41.32,169.6,169.59,0.06]
[1754352097789,41.32,169.6,169.59,0.41]
[1754352097996,41.35,169.62,169.59,0.41]
[1754352098204,41.35,169.62,169.6,0.35]
[1754352098694,41.35,169.62,169.59,0.06]
[1754352099704,41.35,169.62,169.59,5.95657409]
[1754352100098,0.03,169.62,169.59,5.95657409]
[1754352100310,0.03,169.62,169.6,0.35]
[1754352100833,0.03,169.62,169.61,0.35]
[1754352102134,0.03,169.62,169.59,20.69800931]
[1754352102419,0.03,169.62,169.6,0.35]
[1754352102929,15.10621557,169.6,169.56,0.2]
[1754352103094,0.14216157,169.58,169.56,0.2]
[1754352103293,0.67,169.57,169.56,0.2]
[1754352103490,0.14216157,169.55,169.54,0.2]
[1754352103711,26.0,169.53,169.51,0.06]
[1754352103904,42.21,169.52,169.51,0.06]
[1754352104310,48.10900896,169.52,169.51,0.06]
[1754352105907,63.3573861,169.52,169.51,0.06]
[1754352106224,41.24837714,169.5,169.49,0.06]
[1754352106632,41.91837714,169.5,169.49,0.06]
[1754352107318,83.35621557,169.5,169.49,0.06]
[1754352107698,42.25,169.5,169.49,0.06]
[1754352108055,41.58,169.5,169.49,0.06]
[1754352108608,57.35621557,169.5,169.49,0.06]
[1754352109752,63.25592058,169.5,169.49,0.06]
[1754352110055,63.39808215,169.5,169.49,0.06]
[1754352110754,89.39808215,169.5,169.49,0.06]
[1754352115534,83.35621557,169.5,169.49,0.06]
[1754352116123,89.25592058,169.5,169.49,0.06]
[1754352116323,89.39808215,169.5,169.49,0.06]
[1754352116659,91.76235815,169.5,169.49,0.06]
[1754352117851,65.76235815,169.5,169.49,0.06]
[1754352118259,77.38174983,169.5,169.49,0.06]
[1754352120084,35.80174983,169.5,169.49,0.06]
[1754352120261,101.03747383,169.5,169.49,0.06]
[1754352123764,58.76747383,169.5,169.49,0.06]
[1754352124086,100.32747383,169.5,169.49,0.06]
[1754352124374,58.76747383,169.5,169.49,0.06]
[1754352124578,52.86776882,169.5,169.49,0.06]
[1754352124758,94.28560725,169.5,169.49,0.06]
[1754352124957,68.28560725,169.5,169.49,0.06]
[1754352125357,53.17939168,169.5,169.49,0.06]
[1754352126273,53.17939168,169.5,169.49,0.77]
[1754352127260,11.61939168,169.5,169.49,0.77]
[1754352128091,11.61939168,169.5,169.49,6.6700531]
[1754352134865,1e-08,169.5,169.49,6.6700531]
[1754352135069,1e-08,169.5,169.49,32.6700531]
[1754352136579,1e-08,169.51,169.49,32.6700531]
[1754352136765,1e-08,169.51,169.5,0.71]
[1754352137967,1e-08,169.51,169.5,6.60970501]
[1754352138164,1e-08,169.51,169.5,21.71592058]
[1754352138489,1e-08,169.51,169.5,6.75186658]
[1754352140868,1e-08,169.51,169.5,21.85808215]
[1754352142575,0.66,169.59,169.53,26.0]
[1754352142796,0.66,169.59,169.54,21.35409578]
[1754352143169,0.66,169.58,169.54,21.35409578]
[1754352143372,0.66,169.57,169.54,20.64409578]
[1754352143708,0.66,169.56,169.54,5.89831308]
[1754352144688,0.66,169.55,169.54,5.89831308]
[1754352144875,0.66,169.55,169.51,31.89935697]
[1754352145474,0.66,169.55,169.51,47.35774939]
[1754352145891,5.89644097,169.6,169.51,46.64774939]
[1754352146089,0.66,169.59,169.52,0.71]
[1754352147096,0.66,169.59,169.53,5.898661]
[1754352150104,0.69,169.59,169.53,5.898661]
[1754352150310,0.69,169.59,169.53,0.66]
[1754352151180,0.69,169.59,169.52,5.89900896]
[1754352151581,0.69,169.59,169.52,6.55900896]
[1754352152687,6.58657844,169.59,169.52,6.55900896]
[1754352152929,0.67,169.58,169.52,5.89900896]
[1754352153210,15.10621557,169.55,169.49,0.06]
[1754352153381,0.67,169.54,169.49,5.96000633]
[1754352153587,15.10621557,169.53,169.49,0.06]
[1754352153778,0.67,169.52,169.49,0.06]
[1754352154728,6.56920633,169.52,169.49,0.06]
[1754352154900,0.67,169.51,169.49,0.06]
[1754352155102,0.67,169.54,169.49,0.72]
[1754352155505,0.67,169.53,169.49,0.72]
[1754352156422,0.67,169.53,169.5,5.89970501]
[1754352156816,0.67,169.55,169.5,6.55970501]
[1754352157506,0.67,169.54,169.5,5.89970501]
[1754352157706,0.67,169.53,169.5,5.89970501]
[1754352158628,0.67,169.53,169.49,5.9600531]
[1754352158943,0.67,169.53,169.49,6.6200531]
[1754352160300,0.67,169.55,169.5,0.66]
[1754352160804,0.67,169.54,169.5,0.66]
[1754352161125,0.67,169.54,169.49,5.9600531]
[1754352161326,0.67,169.53,169.49,0.06]
[1754352161536,26.0,169.52,169.49,0.06]
[1754352161827,57.29621557,169.51,169.49,0.06]
[1754352162224,0.67,169.5,169.49,0.06]
[1754352163909,6.56970501,169.5,169.49,0.06]
[1754352165018,6.56970501,169.5,169.44,4.64179414]
[1754352165199,0.67,169.49,169.44,4.64179414]
[1754352165399,5.89970501,169.5,169.43,5.96214247]
[1754352165725,0.67,169.5,169.44,0.66]
[1754352167022,0.67,169.5,169.44,6.56146821]
[1754352169037,6.56974742,169.5,169.44,5.90146821]
[1754352169212,0.67,169.49,169.43,5.96203654]
[1754352169531,0.67,169.49,169.43,0.06]
[1754352169926,15.10621557,169.48,169.43,0.06]
[1754352170133,15.10621557,169.46,169.43,0.06]
[1754352170533,0.67,169.45,169.43,0.06]
[1754352171534,6.57157089,169.45,169.43,0.06]
[1754352172032,0.67,169.44,169.43,0.06]
[1754352173018,6.57179414,169.44,169.43,0.06]
[1754352174521,0.67,169.44,169.43,0.06]
[1754352176826,6.57179414,169.44,169.43,0.06]
[1754352180822,42.15,169.44,169.43,0.06]
[1754352181517,41.48,169.44,169.43,0.06]
[1754352181941,57.30621557,169.44,169.43,0.06]
[1754352182844,63.20800971,169.44,169.43,0.06]
[1754352183423,63.35017128,169.44,169.43,0.06]
[1754352189143,63.35017128,169.44,169.42,0.06]
[1754352189144,15.10621557,169.43,169.42,0.06]
[1754352189455,15.82621557,169.43,169.42,0.06]
[1754352190148,21.72835804,169.43,169.42,0.06]
[1754352190843,0.14216157,169.42,169.41,0.06]
[1754352191050,57.50837714,169.42,169.41,1e-08]
[1754352192083,41.24837714,169.38,169.34,0.2]
[1754352192260,41.24837714,169.35,169.34,0.2]
[1754352192661,82.68621557,169.35,169.34,0.87]
[1754352192891,82.68621557,169.35,169.34,0.2]
[1754352193304,83.54837714,169.35,169.34,0.2]
[1754352194197,89.45330775,169.35,169.34,0.2]
[1754352194685,47.87330775,169.35,169.34,0.2]
[1754352194895,88.77330775,169.35,169.34,0.2]
[1754352195188,89.49330775,169.35,169.34,0.2]
[1754352195690,99.08196445,169.35,169.34,0.2]
[1754352196683,98.36196445,169.35,169.34,0.2]
[1754352197473,99.08196445,169.35,169.34,0.2]
[1754352201184,73.08196445,169.35,169.34,0.2]
[1754352203432,30.74196445,169.35,169.34,0.2]
[1754352203605,72.23980288,169.35,169.34,0.2]
[1754352203801,72.38196445,169.35,169.34,0.2]
[1754352204324,73.10196445,169.35,169.34,0.2]
[1754352205604,26.0,169.33,169.32,0.2]
[1754352205816,92.88837714,169.33,169.32,0.2]
[1754352206199,83.60837714,169.33,169.32,0.2]
[1754352206958,89.5140052,169.33,169.32,0.2]
[1754352208219,47.8740052,169.33,169.32,0.2]
[1754352208423,89.5740052,169.33,169.32,0.2]
[1754352210513,15.24837714,169.25,169.2,0.06]
[1754352210792,15.24837714,169.25,169.2,0.78]
[1754352210793,0.14216157,169.23,169.2,0.78]
[1754352210942,42.1,169.22,169.2,0.78]
[1754352211146,26.0,169.24,169.2,0.78]
[1754352211147,42.22,169.24,169.2,0.78]
[1754352212981,15.10621557,169.23,169.2,0.78]
[1754352213167,42.22,169.22,169.2,0.06]
[1754352213685,42.22,169.22,169.2,0.78]
[1754352214043,42.22,169.22,169.2,0.06]
[1754352214044,15.10621557,169.21,169.2,0.06]
[1754352214359,0.14216157,169.25,169.2,0.06]
[1754352214360,0.14216157,169.26,169.21,0.72]
[1754352214571,42.24,169.26,169.21,0.72]
[1754352214742,57.36621557,169.27,169.21,0.72]
[1754352215083,57.36621557,169.27,169.21,6.62953529]
[1754352215243,63.27403939,169.27,169.22,0.72]
[1754352215444,0.86216157,169.26,169.21,0.72]
[1754352215644,15.10621557,169.24,169.2,0.06]
[1754352215948,42.26,169.23,169.2,0.06]
[1754352216161,15.10621557,169.22,169.2,0.06]
[1754352216744,57.38621557,169.21,169.2,0.06]
[1754352217071,63.29603177,169.21,169.2,0.06]
[1754352218766,6.62810025,169.26,169.2,0.78]
[1754352219069,42.26,169.25,169.2,6.69009011]
[1754352219243,42.26,169.25,169.2,5.97009011]
[1754352219442,42.26,169.25,169.21,0.72]
[1754352221266,42.26,169.25,169.21,6.62956557]
[1754352221580,42.26,169.25,169.22,0.72]
[1754352221749,42.28,169.27,169.22,0.72]
[1754352222460,42.28,169.27,169.21,5.90956557]
[1754352222461,15.82621557,169.26,169.2,0.78]
[1754352222667,58.06621557,169.25,169.2,0.06]
[1754352222975,15.10621557,169.23,169.2,0.06]
[1754352223269,5.9098162,169.21,169.2,0.06]
[1754352223453,51.08304536,169.22,169.2,0.06]
[1754352223849,56.99262338,169.22,169.2,0.06]
[1754352224067,51.08304536,169.22,169.2,0.06]
[1754352224374,50.36304536,169.22,169.2,0.06]
[1754352224665,50.36304536,169.22,169.21,0.72]
[1754352224852,8.08304536,169.22,169.21,0.72]
[1754352225549,8.08304536,169.22,169.21,6.6298162]
[1754352229749,8.08304536,169.22,169.2,5.97006237]
[1754352230552,8.08304536,169.22,169.2,6.69006237]
[1754352234785,8.08304536,169.22,169.2,0.06]
[1754352234997,8.08304536,169.22,169.21,0.72]
[1754352236392,8.08304536,169.22,169.21,6.6298162]
[1754352236699,8.11304536,169.22,169.21,6.6298162]
[1754352240501,0.03,169.24,169.23,26.0]
[1754352240917,0.03,169.24,169.23,26.69]
[1754352241412,0.66,169.3,169.24,26.0]
[1754352241599,0.66,169.3,169.24,26.69]
[1754352242312,0.66,169.3,169.25,5.90841949]
[1754352242616,0.66,169.29,169.25,5.90841949]
[1754352242780,0.66,169.29,169.25,6.59841949]
[1754352245688,0.66,169.3,169.25,6.59841949]
[1754352245889,0.66,169.29,169.25,6.59841949]
[1754352247690,0.66,169.28,169.23,5.90911776]
[1754352247894,0.66,169.27,169.23,5.90911776]
[1754352248100,0.66,169.27,169.23,6.59911776]
[1754352248826,6.56810274,169.26,169.2,0.06]
[1754352249130,15.10621557,169.24,169.2,0.06]
[1754352249312,0.14216157,169.23,169.2,0.06]
[1754352249498,15.90837714,169.22,169.18,0.06]
[1754352249701,0.14216157,169.2,169.18,0.06]
[1754352250004,0.80216157,169.19,169.18,0.06]
[1754352251026,6.71267637,169.19,169.18,0.06]
[1754352252494,0.80216157,169.19,169.18,0.06]
[1754352252897,0.66,169.19,169.18,0.06]
[1754352253226,41.90837714,169.19,169.18,0.06]
[1754352254912,47.81889194,169.19,169.18,0.06]
[1754352255807,41.90837714,169.19,169.18,0.06]
[1754352256010,26.66,169.19,169.18,0.06]
[1754352256209,41.76621557,169.19,169.18,0.06]
[1754352256412,15.76621557,169.19,169.18,0.06]
[1754352256906,21.67673037,169.19,169.18,0.06]
[1754352257303,15.76621557,169.19,169.18,0.06]
[1754352258639,15.10621557,169.19,169.18,0.06]
[1754352259017,42.12,169.21,169.18,0.75]
[1754352261144,42.1,169.21,169.18,0.75]
[1754352261436,6.56865826,169.25,169.19,0.69]
[1754352261642,42.1,169.23,169.19,0.69]
[1754352262350,42.76,169.23,169.19,0.69]
[1754352262631,42.1,169.23,169.18,5.97085886]
[1754352262931,42.1,169.23,169.2,6.59996561]
[1754352263125,42.1,169.23,169.21,0.69]
[1754352263350,42.08,169.25,169.22,0.69]
[1754352264343,42.74,169.25,169.2,6.59996561]
[1754352264540,42.08,169.25,169.2,6.59996561]
[1754352264726,0.66,169.24,169.2,6.59996561]
[1754352265645,42.08,169.25,169.2,5.90996561]
[1754352265840,42.08,169.25,169.21,0.69]
[1754352266540,42.08,169.25,169.2,5.90996561]
[1754352266732,42.08,169.25,169.22,0.69]
[1754352266924,0.66,169.28,169.23,0.69]
[1754352267135,42.06,169.28,169.24,0.69]
[1754352268241,42.72,169.28,169.24,0.69]
[1754352268620,0.69,169.27,169.22,0.72]
[1754352268820,0.69,169.27,169.23,0.72]
[1754352269240,0.69,169.27,169.24,5.90876861]
[1754352271946,0.69,169.26,169.21,0.72]
[1754352272125,0.69,169.26,169.22,0.72]
[1754352272649,0.69,169.25,169.21,5.9098162]
[1754352272842,0.69,169.24,169.21,5.9098162]
[1754352273361,0.69,169.26,169.21,6.6298162]
[1754352273530,0.69,169.25,169.21,6.6298162]
[1754352276961,42.06,169.28,169.22,0.72]
[1754352277748,26.69,169.29,169.22,0.72]
[1754352277956,41.98,169.28,169.22,0.72]
[1754352278260,0.69,169.32,169.23,20.68191218]
[1754352278426,48.57598716,169.32,169.23,20.68191218]
[1754352278626,48.57598716,169.32,169.24,0.72]
[1754352279256,0.69,169.31,169.24,0.72]
[1754352279428,0.69,169.31,169.25,5.90841949]
[1754352279628,0.69,169.31,169.25,6.62841949]
[1754352279835,0.03,169.27,169.25,6.62841949]
[1754352280041,0.03,169.27,169.26,0.72]
[1754352281958,0.03,169.27,169.26,6.62807042]
[1754352283068,0.03,169.27,169.24,0.72]
[1754352283564,0.03,169.27,169.25,0.72]
[1754352283725,0.69,169.26,169.19,0.72]
[1754352284253,0.69,169.26,169.19,5.9105148]
[1754352285335,5.90841949,169.25,169.18,5.97086416]
[1754352285537,0.69,169.24,169.18,5.97086416]
[1754352286026,15.10621557,169.23,169.18,0.06]
[1754352286235,0.69,169.22,169.18,0.06]
[1754352286832,0.69,169.21,169.18,0.06]
[1754352290741,0.69,169.2,169.18,0.06]
[1754352293150,15.10621557,169.23,169.18,0.06]
[1754352293349,0.69,169.21,169.18,0.06]
[1754352294244,0.69,169.21,169.18,0.78]
[1754352294545,6.59887696,169.24,169.19,0.72]
[1754352294754,0.69,169.23,169.19,0.72]
[1754352296140,0.69,169.25,169.2,0.72]
[1754352296339,0.69,169.24,169.21,5.9098162]
[1754352296947,6.59817581,169.26,169.21,6.6298162]
[1754352297237,0.69,169.25,169.21,6.6298162]
[1754352297663,0.72,169.27,169.22,0.72]
[1754352297862,0.72,169.27,169.23,0.72]
[1754352298543,0.72,169.27,169.23,6.62889387]
[1754352298874,0.03,169.27,169.24,0.66]
[1754352299871,0.03,169.27,169.25,5.90841949]
[1754352300173,0.03,169.26,169.25,6.56841949]
[1754352300551,0.03,169.26,169.23,14.77257028]
[1754352300552,0.03,169.26,169.23,0.66]
[1754352300757,0.68,169.25,169.21,0.66]
[1754352301238,0.68,169.25,169.21,6.5698162]
[1754352305053,0.03,169.26,169.22,0.66]
[1754352305262,0.03,169.26,169.24,26.0]
[1754352305467,0.03,169.26,169.25,0.66]
[1754352306266,0.03,169.26,169.25,6.56841949]
[1754352311380,0.71,169.26,169.2,26.66]
[1754352311574,0.71,169.26,169.2,5.91016548]
[1754352314192,6.61810527,169.26,169.19,5.91040972]
[1754352314488,0.68,169.25,169.19,5.91040972]
[1754352315269,6.58864368,169.25,169.19,5.91040972]
[1754352315590,0.68,169.24,169.19,5.91040972]
[1754352315790,0.68,169.24,169.18,5.97076104]
[1754352316092,0.68,169.23,169.18,6.63076104]
[1754352317182,0.68,169.22,169.18,6.63076104]
[1754352317600,0.68,169.24,169.19,0.66]
[1754352317964,0.68,169.24,169.2,0.66]
[1754352318157,0.68,169.24,169.21,0.66]
[1754352318862,6.61809671,169.26,169.21,6.5697404]
[1754352319062,0.68,169.25,169.21,6.5697404]
[1754352320285,0.68,169.24,169.19,0.66]
[1754352320594,0.68,169.23,169.19,0.66]
[1754352321498,0.68,169.23,169.2,0.66]
[1754352321696,0.68,169.25,169.2,0.66]
[1754352321994,0.68,169.24,169.2,0.66]
[1754352322158,0.68,169.24,169.2,6.6298179]
[1754352322777,6.61817276,169.26,169.21,0.66]
[1754352323091,0.68,169.25,169.21,0.66]
[1754352323484,0.68,169.25,169.21,6.56964804]
[1754352323855,0.03,169.26,169.22,0.66]
[1754352324055,0.03,169.26,169.23,0.66]
[1754352324965,0.71,169.26,169.21,27.76964804]
[1754352325164,0.71,169.26,169.22,0.66]
[1754352325391,0.71,169.26,169.22,6.5691895]
[1754352326067,0.03,169.26,169.23,0.66]
[1754352327201,0.71,169.26,169.23,0.66]
[1754352327379,0.71,169.26,169.23,6.56906739]
[1754352327695,0.03,169.26,169.23,6.56906739]
[1754352330004,0.73,169.26,169.22,5.90937081]
[1754352330310,0.73,169.26,169.22,6.59937081]
[1754352331191,4.39546848,169.25,169.22,6.59937081]
[1754352331390,4.39546848,169.24,169.22,6.59937081]
[1754352331702,4.39546848,169.23,169.21,21.2]
[1754352331882,5.0955597,169.22,169.2,0.06]
[1754352332189,0.7,169.21,169.2,0.06]
[1754352332392,5.09600387,169.21,169.2,0.06]
[1754352332704,0.7,169.23,169.2,0.06]
[1754352332890,4.3964669,169.22,169.2,0.75]
[1754352333077,4.3964669,169.21,169.2,0.06]
[1754352333775,5.09651253,169.21,169.2,0.06]
[1754352335212,4.39651253,169.21,169.2,0.06]
[1754352335388,5.09651253,169.21,169.2,0.06]
[1754352335802,5.09624426,169.21,169.2,0.06]
[1754352336714,4.39624426,169.21,169.2,0.06]
[1754352337012,4.39624426,169.21,169.2,0.75]
[1754352337701,4.39624426,169.21,169.2,6.66016548]
[1754352339709,0.03,169.26,169.2,42.63557919]
[1754352340013,4.3990262,169.25,169.21,0.69]
[1754352340207,4.3990262,169.24,169.21,0.69]
[1754352340408,4.3990262,169.23,169.21,0.69]
[1754352340703,4.3990262,169.22,169.21,0.69]
[1754352340906,0.03,169.26,169.22,5.90946696]
[1754352341111,0.03,169.26,169.23,0.69]
[1754352342102,0.03,169.26,169.23,6.59877593]
[1754352342714,0.03,169.26,169.24,0.69]
[1754352342913,0.03,169.26,169.24,42.43]
[1754352343226,0.03,169.27,169.25,0.14216157]
[1754352343438,0.03,169.27,169.26,0.69]
[1754352344232,0.03,169.27,169.26,6.59807042]
[1754352344910,0.03,169.27,169.26,5.90807042]
[1754352346918,0.03,169.27,169.26,6.59807042]
[1754352347315,0.03,169.27,169.26,5.90807042]
[1754352347529,0.03,169.27,169.26,6.59807042]
[1754352348325,0.03,169.27,169.26,47.76807042]
[1754352352911,0.03,169.27,169.26,68.96807042]
[1754352354021,0.03,169.27,169.26,63.06]
[1754352354228,0.73,169.27,169.23,5.90877125]
[1754352354409,0.73,169.27,169.21,5.9098162]
[1754352354615,0.73,169.27,169.21,47.7298162]
[1754352356445,26.0,169.24,169.2,0.06]
[1754352356615,15.80621557,169.23,169.2,0.06]
[1754352356816,15.10621557,169.2,169.18,0.06]
[1754352357339,15.80621557,169.19,169.18,0.06]
[1754352357520,21.85889194,169.19,169.18,0.06]
[1754352361149,26.2511938,169.19,169.18,0.06]
[1754352361646,21.85889194,169.19,169.18,0.06]
[1754352361848,26.25029965,169.19,169.18,0.06]
[1754352362543,26.24897415,169.19,169.18,0.06]
[1754352365154,26.2454942,169.19,169.18,0.06]
[1754352365733,4.38660226,169.19,169.18,0.06]
[1754352365952,0.7,169.19,169.18,0.06]
[1754352366154,0.03,169.2,169.18,0.06]
[1754352366355,0.73,169.2,169.18,0.06]
[1754352366558,0.03,169.2,169.18,0.06]
[1754352367346,0.73,169.2,169.18,0.06]
[1754352368055,0.03,169.2,169.18,0.06]
[1754352369068,0.73,169.2,169.18,0.06]
[1754352369765,0.03,169.2,169.18,0.06]
[1754352370740,0.73,169.2,169.18,0.06]
[1754352371458,0.03,169.2,169.18,0.06]
[1754352372464,0.03,169.2,169.19,0.72]
[1754352372765,42.17,169.2,169.18,0.78]
[1754352373262,42.17,169.2,169.18,0.06]
[1754352374167,42.87,169.2,169.18,0.06]
[1754352374671,0.7,169.19,169.18,0.06]
[1754352376251,15.94837714,169.19,169.18,0.06]
[1754352376473,21.85889194,169.19,169.18,0.06]
[1754352378349,15.10621557,169.19,169.18,0.06]